Cogmind - Beta 12 @@@ ROGUE MODE // 2023.05.06 @ 15:44:05 Player: Ms. V3-11A Result: Destroyed by S-27 Virus with Autogun Performance ------------- Evolutions (3) 1500 Regions Visited (4) 800 Robots Destroyed (88) 440 Value Destroyed (2454) 2454 Prototype IDs (9) 180 Alien Tech Used (0) 0 Bonus (137) 137 TOTAL SCORE: 5511 Bonus ------- High Alert Combat Kills 104 Follower Combat Kills 45 Friendly Fire -12 Cogmind --------- Core Integrity 0/700 Matter 7/300 Energy 99/100 System Corruption 3% Temperature Cool (18) Movement Core (200) Ox3 Location -7/Factory Parts ------- > --- POWER (1) -------- (None) > --- PROPULSION (3) --- (None) > --- UTILITY (6) ------ Medium Storage Unit Machine Analyzer Signal Interpreter Hacking Suite System Shield > --- WEAPON (3) ------- (None) > --- INVENTORY (10) --- Gravmag System Gravmag System Xenon Bombardment Thruster Xenon Bombardment Thruster Xenon Bombardment Thruster Xenon Bombardment Thruster Sensor Array Hacking Suite Hacking Suite Hacking Suite Peak State ------------ > --- POWER ------------ Micro Nuclear Core > --- PROPULSION ------- Improved Flight Unit Improved Flight Unit Xenon Bombardment Thruster > --- UTILITY ---------- Medium Storage Unit Machine Analyzer Signal Interpreter Shield Generator Hacking Suite System Shield > --- WEAPON ----------- Improved Spread Laser > --- INVENTORY -------- Light Ion Engine Sensor Array Hacking Suite Hacking Suite Hacking Suite [Rating: 33] Favorites ----------- Power Ion Engine Engine Ion Engine Power Core Micro Nuclear Core Propulsion Light Treads Treads Light Treads Leg Aluminum Leg Flight Unit Improved Flight Unit Utility High-capacity Storage Unit Device Heat Sink Storage High-capacity Storage Unit Processor Improved Targeting Computer Hackware Hacking Suite Protection Hardened Medium Armor Plating Weapon Heavy EM Pulse Gun Energy Gun Heavy EM Pulse Gun Energy Cannon Advanced Beam Cannon Ballistic Gun Heavy Assault Rifle Launcher Grenade Launcher Build | -11 -10 -9 -8 -7 ------- Run | Jun Mat Mat Mat Fac Slots Evolved 6 | . . 2 2 2 Power . | . . . . . Propulsion 1 | . . . 1 . Utility 4 | . . 1 1 2 Weapon 1 | . . 1 . . Parts Attached 101 | . 13 43 14 31 Power 9 | . . 5 1 3 Engine 7 | . . 5 . 2 Core 2 | . . . 1 1 Reactor . | . . . . . Propulsion 27 | . 5 8 2 12 Treads 12 | . 2 8 2 . Leg 3 | . 3 . . . Wheel . | . . . . . Hover . | . . . . . Flight 12 | . . . . 12 Utility 30 | . 3 12 5 10 Device 11 | . 1 3 2 5 Storage 4 | . 2 1 . 1 Processor 3 | . . 1 . 2 Hackware 2 | . . . . 2 Protection 10 | . . 7 3 . Artifact . | . . . . . Weapon 35 | . 5 18 6 6 Energy Gun 19 | . 2 11 . 6 Energy Cannon 4 | . . 3 1 . Ballistic Gun 8 | . 1 3 4 . Ballistic Cannon . | . . . . . Launcher 4 | . 2 1 1 . Special Weapon . | . . . . . Impact Weapon . | . . . . . Slashing Weapon . | . . . . . Piercing Weapon . | . . . . . Special Melee Weapon . | . . . . . Unidentified Prototypes 4 | . . 1 1 2 Corrupted Parts 2 | . . 1 . 1 System Corruption 8 | . . 4 . 4 Parts Lost 23 | . . 8 2 13 Power 2 | . . 1 . 1 Propulsion 6 | . . 1 . 5 Utility 8 | . . 2 1 5 Weapon 7 | . . 4 1 2 Highest Loss Streak 5 | . . 5 2 4 To Critical Strikes . | . . . . . Average Slot Usage (%) 94 | . 99 97 95 65 Engine 10 | . 14 10 6 1 Treads 14 | . 7 21 23 1 Leg 6 | . 20 . . . Flight 1 | . . . . 16 Device 10 | . 13 8 11 7 Storage 11 | . 14 11 9 7 Processor 3 | . . 3 . 14 Hackware 1 | . . . . 9 Protection 6 | . . 9 15 . Energy Gun 11 | . 13 15 1 1 Energy Cannon 3 | . . 6 7 . Ballistic Gun 11 | . 14 9 17 . Naked Turns . | . . . . . Heaviest Build 75 | 12 48 66 75 66 Greatest Support 60 | 20 40 40 60 60 Greatest Overweight (x) 6 | . 2 1 1 6 Average Overweight (x) . | . 1 1 1 . Largest Inventory Capacity 20 | 8 20 20 20 20 Average Capacity 18 | 8 17 20 20 10 Most Carried 20 | 5 17 20 20 20 Average Carried 16 | 4 14 19 19 9 Final Capacity 20 | 8 20 20 20 10 Final Carried 20 | 4 15 20 20 10 Class Distribution -------------------- 53% | Mutant 18% | Tank 8% | Gunner 8% | Scavenger-Tank 6% | Hacker-Mutant 3% | Scavenger-Gunner Dominant Class ---------------- Mutant | -10/Materials Mutant | -9/Materials Scavenger-Tank | -8/Materials Hacker-Mutant | -7/Factory Resources | -11 -10 -9 -8 -7 ----------- Run | Jun Mat Mat Mat Fac Matter Collected 1258 | 192 201 583 102 180 Remotely . | . . . . . Salvage Created 3073 | . 519 1878 557 119 Parts 216 | . 44 137 30 5 Haulers Intercepted 5 | . 2 3 . . Recyclers Shooed 1 | . 1 . . . Parts Field Recycled . | . . . . . Retrieved Matter . | . . . . . Parts Self-Destructed . | . . . . . Prevented . | . . . . . Kills | -11 -10 -9 -8 -7 ------- Run | Jun Mat Mat Mat Fac Combat Hostiles Destroyed 61 | . 14 34 10 3 Guns 34 | . 8 15 8 3 Cannons 13 | . . 11 2 . AOE 14 | . 6 8 . . Classes Destroyed 13 | . 5 8 . . Worker 2 | . . 1 . 1 Builder 5 | . . 5 . . Tunneler 2 | . . 2 . . Hauler 5 | . 2 3 . . Recycler 2 | . 1 1 . . Mechanic 2 | . . 2 . . Operator 5 | . 1 3 1 . Watcher 4 | . . 4 . . Swarmer 11 | . 6 3 . 2 Grunt 34 | . 8 21 5 . Brawler 1 | . . 1 . . Duelist 2 | . . 1 1 . Sentry 13 | . . 8 4 1 Best Kill Streak 9 | . 4 9 4 2 Combat Bots Only 7 | . 4 7 4 2 Max Kills in Single Turn 7 | . 3 7 1 1 Gunslinging 1 | . . 1 . . Exploded 3 | . 3 3 . . Melee . | . . . . . Uniques/NPCs Destroyed . | . . . . . Combat | -11 -10 -9 -8 -7 -------- Run | Jun Mat Mat Mat Fac Damage Taken 4345 | . 452 1699 703 1491 Core 1142 | . 91 211 138 702 Absorbed by Shields 62 | . . . . 62 Regen/Repaired (Parts) 147 | . . 147 . . Core Remaining (%) 71 | 100 63 47 74 . Volleys Fired 195 | . 49 98 28 20 Largest 3 | . 2 3 3 1 Hottest 159 | . 60 159 116 75 Shots Fired 413 | . 91 218 83 21 Gun 315 | . 87 143 64 21 Cannon 92 | . . 73 19 . Launcher 6 | . 4 2 . . Special . | . . . . . Kinetic 147 | . 45 46 56 . Thermal 161 | . 42 80 19 20 Explosive 6 | . 4 2 . . Electromagnetic 99 | . . 90 8 1 Robot Hit Streak 14 | . 10 14 12 9 Robot Miss Streak 7 | . 4 3 6 7 Penetration Max . | . . . . . Secondary Targets 5 | . 1 3 1 . Max Gunslinging Chain 1 | . 1 1 1 . Shots Hit Robots 258 | . 55 139 44 20 Core Hits 151 | . 34 73 22 22 Critical Kills 2 | . . 2 . . Critical Parts Destroyed . | . . . . . Critical Strikes 3 | . . 3 . . Destroy 2 | . . 2 . . Corrupt 1 | . . 1 . . Melee Attacks . | . . . . . Impact . | . . . . . Slashing . | . . . . . Piercing . | . . . . . Sneak Attacks . | . . . . . Combat Hostiles . | . . . . . Follow-up Attacks . | . . . . . Damage Inflicted 6063 | . 888 3892 882 401 Guns 2958 | . 534 1479 549 396 Cannons 1394 | . . 1070 324 . Explosions 1690 | . 354 1336 . . Melee . | . . . . . Ramming 21 | . . 7 9 5 Kinetic 1142 | . 224 423 495 . Thermal 3299 | . 310 2285 324 380 Explosive 540 | . 354 186 . . Electromagnetic 1061 | . . 991 54 16 Impact . | . . . . . Slashing . | . . . . . Piercing . | . . . . . Highest Corruption 5 | . . 4 . 5 Average Corruption 4 | . . 4 . 4 Corruption Purged 2 | . . . . 2 Corruption Blocked . | . . . . . Effects 62 | . . 46 . 16 Message Errors 15 | . . 10 . 5 Matter Fused 9 | . . 6 . 3 Heat Flow Errors 5 | . . 4 . 1 Energy Discharges 9 | . . 7 . 2 Parts Rejected 2 | . . 2 . . Data Loss (minor) 8 | . . 5 . 3 Data Loss (major) 5 | . . 5 . . Misfires 3 | . . 2 . 1 Alerts 3 | . . 2 . 1 Weapon Failures 3 | . . 3 . . Overload Shots . | . . . . . Overflow Damage 111 | . 6 105 . . Projectiles 25 | . . 25 . . Explosions 86 | . 6 80 . . Melee . | . . . . . Knockbacks . | . . . . . Impact . | . . . . . Kinetic . | . . . . . Secondary . | . . . . . Self-Inflicted Damage 133 | . . 131 . 2 Shots 5 | . . 5 . . Rammed 6 | . 1 2 2 1 Targets Rammed 6 | . 1 2 2 1 Kicked . | . . . . . Crushed . | . . . . . Highest Temperature 381 | . 96 381 336 150 Average Temperature 89 | . 33 108 97 51 Received Heat Transfer 1509 | . 174 732 333 270 Siege Activations . | . . . . . Robots Corrupted . | . . . . . Combat Hostiles . | . . . . . Parts Fried 5 | . . 5 . . Impact Corruptions . | . . . . . Robots Melted . | . . . . . Combat Hostiles . | . . . . . Parts Melted 10 | . 1 6 3 . Heat Transferred 4742 | . 700 3150 592 300 Parts Sabotaged . | . . . . . Parts Stolen . | . . . . . Parts Stripped . | . . . . . Power Chain Reactions 5 | . . 5 . . Missiles Intercepted . | . . . . . Alert | -11 -10 -9 -8 -7 ------- Run | Jun Mat Mat Mat Fac Peak Influence 680 | . 175 680 497 142 Initial 252 | . . 1 252 88 Average 224 | . 76 363 255 90 Maximum Alert Level 2 | . . 2 2 . Low Security (%) 60 | 100 100 24 48 100 Level 1 17 | . . 30 36 . Level 2 21 | . . 45 14 . Level 3 . | . . . . . Level 4 . | . . . . . Level 5 . | . . . . . High Security . | . . . . . Max Security . | . . . . . Squads Dispatched 12 | . 3 4 1 4 Investigation 3 | . 1 1 . 1 Extermination . | . . . . . Reinforcement 4 | . 2 2 . . Assault 1 | . . 1 . . Garrison 4 | . . . 1 3 Intercept . | . . . . . Searches Triggered . | . . . . . Construction Impeded . | . . . . . Haulers Reinforced . | . . . . . Active Scanning Responses . | . . . . . Cargo Convoy Interrupts . | . . . . . Stealth | -11 -10 -9 -8 -7 --------- Run | Jun Mat Mat Mat Fac Distress Signals 12 | . 3 6 3 . Communications Jammed . | . . . . . Distress Signals . | . . . . . Times Spotted 117 | . 36 51 16 14 Peak Tracking Total 8 | . 4 8 6 6 Tactical Retreats 4 | . . 3 . 1 Traps | -11 -10 -9 -8 -7 ------- Run | Jun Mat Mat Mat Fac Traps Triggered 6 | . 1 2 . 3 Indirectly . | . . . . . Trap Hack Attempts . | . . . . . Triggered . | . . . . . Disarmed . | . . . . . Reprogrammed . | . . . . . Reused . | . . . . . Traps Extracted . | . . . . . Installed . | . . . . . Triggered . | . . . . . Machines | -11 -10 -9 -8 -7 ---------- Run | Jun Mat Mat Mat Fac Machines Disabled 8 | . 1 7 . . Max in Single Turn 4 | . 1 4 . . Machines Repaired . | . . . . . Machines Sabotaged . | . . . . . Overloaded Fab Kills . | . . . . . Hacking | -11 -10 -9 -8 -7 --------- Run | Jun Mat Mat Mat Fac Machines Accessed 25 | . 7 8 4 6 Terminals 20 | . 7 7 4 2 Fabricators 1 | . . . . 1 Repair Stations 3 | . . 1 . 2 Recycling Units 1 | . . . . 1 Scanalyzers . | . . . . . Garrison Access . | . . . . . Total Hacks 74 | . 19 24 9 22 Successful 30 | . 10 11 3 6 Failed 44 | . 9 13 6 16 Catastrophic 6 | . . 3 1 2 Database Lockouts . | . . . . . Manual 26 | . 12 5 2 7 Terminals 55 | . 19 18 9 9 Fabricators 2 | . . . . 2 Repair Stations 14 | . . 6 . 8 Recycling Units 3 | . . . . 3 Scanalyzers . | . . . . . Garrison Access . | . . . . . Terminal Hacks 17 | . 7 6 3 1 Robot Schematic 1 | . 1 . . . Robot Analysis 2 | . 2 . . . Prototype ID Bank 3 | . 2 1 . . Level Access Points 1 | . . . 1 . Branch Access Points 2 | . . 1 1 . Terminal Index 2 | . . 1 . 1 Unreport Threat 1 | . . . 1 . Dispatch Records 1 | . 1 . . . Investigation Status 1 | . . 1 . . Hauler Manifests 2 | . 1 1 . . Registered Components 1 | . . 1 . . Fabricator Hacks 1 | . . . . 1 Build 1 | . . . . 1 Repair Station Hacks 4 | . . 4 . . Scan Component 2 | . . 2 . . Repair 2 | . . 2 . . Recycling Unit Hacks 2 | . . . . 2 Process 1 | . . . . 1 Retrieve Matter 1 | . . . . 1 Scanalyzer . | . . . . . Garrison Access Hacks . | . . . . . Unauthorized Hacks 6 | . 3 1 . 2 Terminals 6 | . 3 1 . 2 Botnet 6 | . 3 1 . 2 Fabricators . | . . . . . Repair Stations . | . . . . . Recycling Units . | . . . . . Scanalyzers . | . . . . . Garrison Access . | . . . . . Data Cores Recovered 1 | . . 1 . . Used 1 | . . 1 . . Hacking Detections 24 | . 7 8 3 6 Full Trace Events 1 | . . . . 1 Feedback Events . | . . . . . Feedback Blocked . | . . . . . Robot Schematics Acquired 1 | . 1 . . . Robots Built 3 | . . . . 3 Authchips . | . . . . . Time 99 | . . . . 99 Total Robot Build Rating 6 | . . . . 6 Part Schematics Acquired . | . . . . . Parts Built . | . . . . . Authchips . | . . . . . Time . | . . . . . Total Part Build Rating . | . . . . . Parts Repaired 2 | . . 2 . . Time 52 | . . 52 . . Parts Recycled . | . . . . . Recycled Matter 10 | . . . . 10 Retrieved Matter 10 | . . . . 10 Retrieved Components . | . . . . . Parts Scanalyzed . | . . . . . Part Schematics Acquired . | . . . . . Parts Damaged . | . . . . . Bothacking | -11 -10 -9 -8 -7 ------------ Run | Jun Mat Mat Mat Fac Used RIF Installer . | . . . . . Robots Hacked . | . . . . . Non-combat . | . . . . . Combat . | . . . . . Robot Hacks Applied . | . . . . . Relay Couplers Released . | . . . . . Fabnet Peak Effective % . | . . . . . Robots Rewired . | . . . . . Allies Hacked . | . . . . . Hacks Repelled . | . . . . . Allies | -11 -10 -9 -8 -7 -------- Run | Jun Mat Mat Mat Fac Total Allies 3 | . . . . 3 Largest Group 3 | . . . . 3 Highest-Rated Group 30 | . . . . 30 Highest-Rated Ally 10 | . . . . 10 Total Orders . | . . . . . Ally Attacks 2 | . . . . 2 Total Damage 56 | . . . . 56 Kills 1 | . . . . 1 Allies Corrupted . | . . . . . Allies Melted . | . . . . . Intel | -11 -10 -9 -8 -7 ------- Run | Jun Mat Mat Mat Fac Robot Analysis Total 2 | . 2 . . . Derelict Logs Recovered . | . . . . . Drone Launches . | . . . . . Drone Recoveries . | . . . . . Exploration | -11 -10 -9 -8 -7 ------------- Run | Jun Mat Mat Mat Fac Turns Passed 6471 | 2 2157 2813 782 717 Spaces Moved 2833 | 1 864 951 266 751 Core 34 | . . . . 34 Treads 1473 | . 241 951 266 15 Legs 624 | 1 623 . . . Wheels . | . . . . . Hover . | . . . . . Flight 702 | . . . . 702 Fastest Speed 34 | 120 120 240 240 34 Average Speed 184 | 120 218 240 240 55 Slowest Speed 350 | 120 260 240 240 350 Overloaded Moves . | . . . . . Propulsion Burnouts . | . . . . . Robots Hopped 7 | . . . . 7 Cave-ins Triggered . | . . . . . Exploration Rate (%) 44 | 1 94 86 27 13 Regions Visited 4 Branch Regions . Pre-discovered Areas . | . . . . . Known Exits Taken 1 | . . . 1 . Unknown Exits Taken 3 | 1 1 1 . . Scrap Searched . | . . . . . Spaces Dug . | . . . . . Terrain Destroyed 61 | . 21 40 . . Melee . | . . . . . Projectile . | . . . . . AOE 61 | . 21 40 . . Terrain Rammed . | . . . . . Walls Destroyed . | . . . . . Machines Disabled . | . . . . . Actions | -11 -10 -9 -8 -7 --------- Run | Jun Mat Mat Mat Fac Total 3741 | 2 1052 1300 351 1036 Wait 461 | . 94 136 27 204 Move 2816 | . 863 950 265 738 Hop 6 | . . . . 6 Pick Up 67 | . 19 34 4 10 Fast Attach 38 | . 2 17 9 10 Attach 30 | . 2 8 2 18 Detach 6 | . . 1 . 5 Swap 33 | . 9 18 3 3 Drop 83 | 2 13 36 11 21 Fire 195 | . 49 98 28 20 Melee . | . . . . . Ram 1 | . . . . 1 Kick . | . . . . . Crush 5 | . 1 2 2 . Escape Stasis . | . . . . . Rewire . | . . . . . Trap . | . . . . . Miscellaneous . | . . . . . Route ------- -11/Junkyard -10/Materials (discovered 5 exits: *Mat x3 / [*Min x2]) -9/Materials (discovered 2 exits: *Mat / *Min) -8/Materials (discovered 3 exits: *Fac x3) -7/Factory History --------- Turn | Location | Event 3 | -11/Junkyard | Discovered new exit (range 0) 3 | -11/Junkyard | Entered Materials 306 | -10/Materials | Build established: Mutant 484 | -10/Materials | Discovered new exit (range 16) 640 | -10/Materials | Discovered new exit (range 10) 814 | -10/Materials | Discovered new exit (range 10) 1542 | -10/Materials | Discovered new exit (range 13) 1972 | -10/Materials | Discovered new exit (range 9) 2160 | -10/Materials | Entered another Materials area 2160 | -9/Materials | Evolved 2 slots: Utility x1, Weapon x1 2329 | -9/Materials | Lost 5 parts (1p1n1u2w) 2737 | -9/Materials | Lost 3 parts (1u2w) 2758 | -9/Materials | Discovered new exit (range 16) 3337 | -9/Materials | Build established: Tank 3519 | -9/Materials | Discovered new exit (range 8) 4160 | -9/Materials | First assault squad dispatched 4245 | -9/Materials | Core integrity fell below 50% 4276 | -9/Materials | Destroyed 7 combat bots 4322 | -9/Materials | Repaired Lgt. Treads 4350 | -9/Materials | Repaired Heat Sink 4436 | -9/Materials | Identified exit to Mines 4828 | -9/Materials | Build established: Mutant 4973 | -9/Materials | Entered another Materials area 4973 | -8/Materials | Evolved 2 slots: Propulsion x1, Utility x1 5104 | -8/Materials | Garrison activated, responded to threat 5533 | -8/Materials | Found Prototype Launcher 5533 | -8/Materials | Identified Rocket Array 5549 | -8/Materials | Identified exit to Factory 5577 | -8/Materials | Build established: Scavenger-Tank 5755 | -8/Materials | Entered Factory 5755 | -7/Factory | Evolved 2 slots: Utility x2 5987 | -7/Factory | Lost 3 parts (2u1w) 6124 | -7/Factory | Fabricated B-36 Bruiser (x3) 6157 | -7/Factory | Garrison activated, responded to threat 6179 | -7/Factory | Lost 4 parts (3n1u) 6307 | -7/Factory | Core integrity fell below 50% 6326 | -7/Factory | Build established: Hacker-Mutant 6468 | -7/Factory | Core integrity fell below 20% 6472 | -7/Factory | Destroyed by S-27 Virus with Autogun Last Messages --------------- 06387_ Dropped Xenon Bombardment Thruster. 06388_ Acquired Gravmag System. 06389_ K-01 Serf cleans the Nuclear Reactor. 06393_ R-06 Scavenger collects Xenon Bombardment Thruster. 06396_ Acquired Gravmag System. 06397_ System Restoration Module purges 1% system corruption (3%). 06404_ Connecting with Repair Station... 06406_ Xenon Bombardment Thruster destroyed. 06414_ System Restoration Module destroyed. 06426_ System corrupted: Heat flow error (+125). 06443_ Dropped Xenon Bombardment Thruster. 06444_ Connecting with Repair Station... 06444_ ALERT: Suspicious activity at Repair Station F004. Dispatching Investigation squad. 06444_ Acquired Xenon Bombardment Thruster. 06454_ R-06 Scavenger collects Imp. Flight Unit. 06463_ Xenon Bombardment Thruster destroyed. 06470_ Critical hit (Burn: +37). 06471_ R-06 Scavenger collects Med. Matter Pod. 06472_ K-01 Serf collects debris. Map ----- +----------------------------------------------------+ | ???????????????????????????????????????????????# | | ???????????????????????????????????????????????# | | ???????????????????????????????????????????????# | | ???????????????????????????????????????????????#! | | ???????????????????????????????????????????????# | | ???????????????????????????##????????????????##### | | ???????????????????????????# ############????# | | ???????????????????????????# #????# | | ???????????????????????????# "" #????# | | ???????????????????????????# """ #????# | | ???????????????????????????# = R" #????# | | ????????????"""?"""????????#! """ """ #????# | | ????????????"""?"""????????# """ #????# | | ????????????"""?"""????????# """ #????# | | ???????????????????????????# ###### | | ????????????"""?"""????????# """ + | | ????????????"""?"""????????# """ ###### | | ????????????"""?"""????????# = """ #????# | | ???????????????????????????# * #????# | | ?????????????#+###################+########### | | ???????????? t u | | ???????????? ^ | | ???????????? ^ r | | ???????????? | | ??????????????? """"""""" | | ????????????????"""""""""@ ############# | | ????????????????""""""""" #? ??? | | ????????????????""""""""" #? " " " ?"" | | ????????????????""""""""" !=g # " " " ?"" | | ????????????? """"""""" =!g # " " " ??G | | ????????????? s g + " " " ?"" | | ????????????? k u # " " " ?"" | | ????????????????######### s #!! " " " ??? | | ????????????????? ?# #?! " " " ??? | | ???????????????? """ ?# """ #?! " " "???? | | ???????????????? """ # """"" #?? " " "???? | | ???????????????# """ # %""""" #?? ???? | | ???????????????# + #??? ???? | | ???????????????# """ # #???######??? | | ???????????????? """ # ###+####???????????? | | ???????????????? """ ?# # ?????????????? | | ????????????????? ?# # ] ???????????? | | ????????################# # #?????????? | | ????????# # # #?????????? | | ????????# + % # #?????????? | | ????????# # % # """""" #?????##### | | ????????# # # """""" #?????# | = | | ????????# # # """""" #?????# | | ????????# # # """"""?#?????# """ | | ????????# # ####???????????# """ | +----------------------------------------------------+ Best States ------------- Heat Dissipation 44 Energy Generation 15 Energy Capacity 280 Matter Stores 300 Matter Capacity 300 Sight Range 16 Terrain Scan Density 10 Armor Coverage 450 Core Shielding 20 Evasion (%) 71 Targeting Accuracy 6 Recoil Reduction 3 Particle Charging 15 Offensive Hacking 10 Defensive Hacking 10 Authchip Count 2 Item Schematics ----------------- None Robot Schematics ------------------ G-34 Mercenary | -10/Materials | Hacked Fabricated ------------ B-36 Bruiser | x3 | -7/Factory | Preloaded Alien Tech Used ----------------- None Achievements -------------- None Challenges ------------ None Game ------ Seed GatlingBehemothUnit Manual? 0 Play Time 00:56:46 Cumulative 83.0 hours Start 2023.05.06 @ 13:33:22 End 2023.05.06 @ 15:44:05 Sessions 1 Manual Loads 0 Difficulty Rogue Special Mode None Game No. 75 Rogue 30 Adventurer 19 Explorer 26 Win Type - Total 0 Types 0/0/0/0/0/0/0/0/0 Lore% 28 Gallery% 48 Achievement% 66 Wizard Run 0 Options --------- ASCII 0 Keyboard 0 Movement Mouse Keybinds 0 Fullscreen 0 Font 16/Smallcaps Map View 76x50 Tactical HUD 1 Map Filters NONE Filters BRIGHTNESS(125)|SATURATION(75)|LOW_CONTRAST(13,24,33)|SHIFT_HUE(130) Steam 1 RUN: 8796f4f5-a2b1-4e7f-8f05-eb343e713c5d